bitfinex-derivatives/quotes_BTCF0:USTF0_20250114
["timestamp","ask_amount","ask_price","bid_price","bid_amount"]
[1736879645272,0.051659,96842.0,96839.0,0.001]
[1736879645779,0.051659,96841.0,96839.0,0.001]
[1736879645976,0.052659,96841.0,96839.0,0.001]
[1736879646281,0.009,96839.0,96837.0,0.001]
[1736879646885,0.051663,96834.0,96833.0,0.3608]
[1736879647376,0.051667,96825.0,96824.0,0.3608]
[1736879648274,0.10265916,96835.0,96811.0,0.3608]
[1736879648481,0.083162,96836.0,96811.0,0.3608]
[1736879648482,0.10265916,96821.0,96811.0,0.3608]
[1736879648883,0.05167,96820.0,96811.0,0.3608]
[1736879649078,0.051671,96818.0,96811.0,0.3608]
[1736879649280,0.051674,96813.0,96811.0,0.3608]
[1736879651084,0.052674,96813.0,96811.0,0.3608]
[1736879651280,0.06673671,96813.0,96811.0,0.3608]
[1736879651877,0.07173671,96813.0,96811.0,0.3608]
[1736879652285,0.051674,96812.0,96811.0,0.3608]
[1736879652984,0.006,96813.0,96812.0,0.051674]
[1736879653172,0.006,96813.0,96811.0,0.3608]
[1736879653173,0.051674,96812.0,96811.0,0.3608]
[1736879653579,0.056674,96812.0,96811.0,0.3608]
[1736879654683,0.006,96812.0,96802.0,0.3608]
[1736879654990,0.051685,96792.0,96778.0,0.051692]
[1736879655179,0.051685,96792.0,96774.0,1.5]
[1736879655379,0.051685,96792.0,96785.0,0.051689]
[1736879655588,0.051685,96792.0,96781.0,0.3608]
[1736879655783,0.06590898,96792.0,96781.0,0.3608]
[1736879655990,0.06590898,96792.0,96785.0,0.051689]
[1736879656383,0.06590898,96792.0,96791.0,0.00454962]
[1736879656986,0.051679,96803.0,96796.0,0.051682]
[1736879657176,0.051679,96803.0,96802.0,0.3608]
[1736879657375,0.051679,96803.0,96802.0,1.8608]
[1736879657683,0.051679,96803.0,96802.0,0.3608]
[1736879658688,0.052679,96803.0,96802.0,0.3608]
[1736879659293,0.051679,96803.0,96802.0,0.3608]
[1736879659474,0.056679,96803.0,96802.0,0.3608]
[1736879660779,0.057679,96803.0,96802.0,0.3608]
[1736879660980,0.006,96803.0,96802.0,0.3608]
[1736879661187,0.003,96803.0,96802.0,0.41248]
[1736879661384,0.003,96803.0,96802.0,0.3608]
[1736879661585,0.053679,96803.0,96802.0,0.3608]
[1736879662183,0.052679,96803.0,96802.0,0.3608]
[1736879662791,0.054679,96803.0,96802.0,0.3608]
[1736879664380,0.053679,96803.0,96802.0,0.3608]
[1736879665185,0.052679,96803.0,96802.0,0.3608]
[1736879668091,0.052679,96803.0,96791.0,0.00154962]
[1736879668092,0.051685,96792.0,96791.0,0.00154962]
[1736879669597,0.051685,96792.0,96791.0,0.00354962]
[1736879670389,0.06603501,96792.0,96791.0,0.00254962]
[1736879670895,0.06603501,96792.0,96791.0,0.00554962]
[1736879671098,0.06603501,96792.0,96791.0,0.00454962]
[1736879671298,0.06603501,96792.0,96791.0,0.00154962]
[1736879671500,0.06803501,96792.0,96791.0,0.00154962]
[1736879672896,0.06803501,96792.0,96791.0,0.05323562]
[1736879672897,0.002,96792.0,96791.0,0.05323562]
[1736879674203,0.051679,96804.0,96791.0,0.00154962]
[1736879674503,0.051679,96804.0,96800.0,0.05168]
[1736879675290,0.051683,96797.0,96795.0,0.051683]
[1736879675498,0.051685,96792.0,96791.0,0.00554962]
[1736879675899,0.051685,96792.0,96791.0,0.00654962]
[1736879676798,0.052685,96792.0,96791.0,0.00554962]
[1736879676998,0.052685,96792.0,96791.0,0.00254962]
[1736879677601,0.054685,96792.0,96791.0,0.00154962]
[1736879677801,0.06812446,96792.0,96791.0,0.00154962]
[1736879680801,0.06812446,96792.0,96766.0,0.18408138]
[1736879680802,0.01643946,96792.0,96766.0,0.18408138]
[1736879681105,0.10265916,96779.0,96766.0,0.18408138]
[1736879681308,0.051697,96770.0,96766.0,0.18408138]
[1736879681509,0.051698,96768.0,96766.0,0.18408138]
[1736879682015,0.051698,96768.0,96764.0,0.4125]
[1736879682907,0.001,96778.0,96766.0,0.005]
[1736879683109,0.051698,96767.0,96766.0,0.005]
[1736879683310,0.051698,96767.0,96766.0,0.014]
[1736879683812,0.051698,96767.0,96746.0,0.36235025]
[1736879683813,0.051709,96747.0,96746.0,0.36235025]
[1736879684017,0.051709,96747.0,96746.0,0.00155025]
[1736879684703,0.052709,96747.0,96730.0,0.0662]
[1736879684907,0.051718,96731.0,96730.0,0.0662]
[1736879686222,0.051718,96731.0,96730.0,0.0732]
[1736879686716,0.052718,96731.0,96730.0,0.0782]
[1736879687914,0.052718,96731.0,96730.0,0.012]
[1736879689825,0.001,96731.0,96730.0,0.063718]
[1736879690419,0.001,96731.0,96730.0,1.563718]
[1736879690616,0.10265916,96740.0,96730.0,1.563718]
[1736879690617,0.051711,96744.0,96730.0,1.563718]
[1736879690811,0.051706,96753.0,96748.0,0.051708]
[1736879691011,0.051706,96753.0,96743.0,0.3608]
[1736879691012,0.01363136,96753.0,96743.0,0.3608]
[1736879691221,0.051711,96744.0,96743.0,0.3608]
[1736879691415,0.051717,96732.0,96731.0,0.0613]
[1736879692325,0.10265916,96741.0,96731.0,0.0613]
[1736879692516,0.10265916,96741.0,96734.0,0.3608]
[1736879692721,0.051709,96747.0,96746.0,0.051709]
[1736879693231,0.42602651,96753.0,96747.0,0.051709]
[1736879693414,0.412506,96753.0,96748.0,0.051708]
[1736879693616,0.10265916,96756.0,96748.0,0.051708]
[1736879693812,0.11587514,96756.0,96748.0,0.051708]
[1736879694012,0.051707,96751.0,96749.0,0.051708]
[1736879694214,0.10265916,96756.0,96745.0,0.0308]
[1736879694413,0.00155085,96767.0,96745.0,0.0308]
[1736879694616,0.00155085,96767.0,96759.0,0.412503]
[1736879694819,0.00155085,96767.0,96766.0,0.051699]
[1736879696226,0.00155085,96767.0,96766.0,0.052699]
[1736879696825,0.00155085,96767.0,96766.0,0.053699]
[1736879700024,0.05324885,96767.0,96766.0,0.053699]
[1736879700319,0.00155085,96767.0,96766.0,0.053699]
[1736879700934,0.15435116,96780.0,96776.0,0.051694]
[1736879701118,0.01300881,96790.0,96789.0,0.051687]
[1736879701320,0.10265916,96800.0,96788.0,0.3608]
[1736879701633,0.051684,96795.0,96794.0,0.051684]
[1736879702128,0.11530471,96800.0,96789.0,0.0619]
[1736879702332,0.01264555,96800.0,96798.0,0.051682]
[1736879703332,0.01055025,96799.0,96798.0,0.051682]
[1736879703632,0.01055025,96799.0,96789.0,0.0619]
[1736879703933,0.01055025,96799.0,96793.0,0.051684]
[1736879704132,0.051682,96798.0,96793.0,0.051684]
[1736879704334,0.01455025,96799.0,96788.0,0.3608]
[1736879704834,0.051684,96795.0,96791.0,0.051686]
[1736879705223,0.051683,96797.0,96791.0,0.051686]
[1736879705429,0.051683,96796.0,96791.0,0.051686]
[1736879705626,0.02719197,96799.0,96793.0,0.051684]
[1736879705829,0.051687,96789.0,96788.0,0.3608]
[1736879706023,0.001,96795.0,96788.0,0.3608]
[1736879706226,0.01355025,96799.0,96798.0,0.051682]
[1736879706427,0.01355025,96799.0,96798.0,0.412482]
[1736879706635,0.009,96799.0,96798.0,0.412482]
[1736879706840,0.3608,96818.0,96798.0,0.3608]
[1736879707131,0.009,96799.0,96798.0,0.412482]
[1736879707638,0.013,96799.0,96798.0,0.412482]
[1736879708032,0.064681,96799.0,96798.0,0.3608]
[1736879708835,0.064681,96799.0,96789.0,0.3608]
[1736879708836,0.051686,96790.0,96789.0,0.3608]
[1736879710137,0.06430967,96790.0,96789.0,0.3618]
[1736879711237,0.051692,96779.0,96778.0,0.00154986]
[1736879711633,0.001,96779.0,96763.0,0.3608]
[1736879711832,0.051692,96779.0,96773.0,0.051695]
[1736879712143,0.3608,96782.0,96763.0,0.3608]
[1736879712344,0.3608,96782.0,96781.0,0.051691]
[1736879712733,0.051687,96788.0,96781.0,0.051691]
[1736879712933,0.051689,96785.0,96781.0,0.051691]
[1736879714034,0.051689,96785.0,96781.0,0.055691]
[1736879714437,0.051689,96785.0,96781.0,0.052691]
[1736879714635,0.003,96785.0,96781.0,0.001]
[1736879714842,0.05169,96782.0,96781.0,0.001]
[1736879715239,0.05169,96782.0,96781.0,0.002]
[1736879715431,0.05169,96782.0,96781.0,0.001]
[1736879715638,0.05169,96782.0,96781.0,0.002]
[1736879715939,0.0626,96798.0,96781.0,0.002]
[1736879716144,0.051683,96796.0,96791.0,0.051685]
[1736879716344,0.051683,96796.0,96785.0,0.3608]
[1736879716845,0.051683,96796.0,96792.0,0.051685]
[1736879717345,0.003,96793.0,96792.0,0.051685]
[1736879717736,0.18426095,96810.0,96798.0,0.051682]
[1736879717942,0.01243599,96820.0,96798.0,0.412482]
[1736879718132,0.0633,96838.0,96828.0,0.051666]
[1736879718333,0.051663,96833.0,96828.0,0.412466]
[1736879718544,0.05321465,96829.0,96828.0,0.3608]
[1736879718740,0.05167,96820.0,96819.0,0.3608]
[1736879718933,0.2081756,96829.0,96811.0,0.051675]
[1736879719139,0.051672,96817.0,96811.0,0.051675]
[1736879719444,0.15396095,96821.0,96811.0,0.051675]
[1736879719647,0.051674,96813.0,96811.0,0.051675]
[1736879720045,0.15396095,96821.0,96806.0,0.051677]
[1736879720237,0.051676,96810.0,96806.0,0.051677]
[1736879720547,0.051676,96809.0,96806.0,0.051677]
[1736879720749,0.051678,96806.0,96805.0,0.3608]
[1736879721245,0.051675,96812.0,96805.0,0.3608]
[1736879721447,0.004,96810.0,96809.0,0.051676]
[1736879722450,0.005,96810.0,96809.0,0.051676]
[1736879722847,0.001,96810.0,96809.0,0.051676]
[1736879723150,0.00154965,96829.0,96805.0,0.3608]
[1736879723339,0.00154965,96829.0,96828.0,0.051666]
[1736879724843,0.05321465,96829.0,96828.0,0.051666]
[1736879725048,0.051667,96825.0,96824.0,0.3608]
[1736879726249,0.055667,96825.0,96824.0,0.3608]
[1736879726846,0.064667,96825.0,96824.0,0.3608]
[1736879728043,0.064667,96825.0,96824.0,0.412468]
[1736879729261,0.013,96825.0,96824.0,0.412468]
[1736879737756,0.064667,96825.0,96824.0,0.3608]
[1736879737958,0.051671,96819.0,96818.0,0.3608]
[1736879738254,0.001,96819.0,96804.0,0.00154946]
[1736879738457,0.051678,96805.0,96804.0,0.00154946]
[1736879739950,0.3618,96805.0,96774.0,0.3608]
[1736879740153,0.051689,96786.0,96782.0,0.05169]
[1736879740354,0.051689,96786.0,96783.0,0.41249]
[1736879740657,0.3608,96797.0,96783.0,0.41249]
[1736879740658,0.051689,96785.0,96783.0,0.41249]
[1736879740860,0.051689,96784.0,96783.0,0.41249]
[1736879741359,0.051689,96784.0,96783.0,0.41349]
[1736879741954,0.3608,96797.0,96783.0,0.3618]
[1736879742154,0.3608,96797.0,96786.0,0.051688]
[1736879742352,0.051689,96784.0,96783.0,0.3648]
[1736879742953,0.051689,96784.0,96783.0,0.3628]
[1736879744955,0.051689,96784.0,96783.0,0.41449]
[1736879745460,0.051689,96784.0,96783.0,0.3628]
[1736879745654,0.051689,96784.0,96783.0,0.002]
[1736879747265,0.052689,96784.0,96783.0,0.002]
[1736879751158,0.051689,96784.0,96783.0,0.002]
[1736879754662,0.413489,96784.0,96783.0,0.002]
[1736879754862,0.413489,96784.0,96760.0,0.084702]
[1736879755068,0.051698,96767.0,96760.0,0.084702]
[1736879755771,0.051698,96767.0,96760.0,0.033]
[1736879756070,0.052698,96767.0,96766.0,0.01054997]
[1736879756768,0.052698,96767.0,96766.0,0.00654997]
[1736879756977,0.052698,96767.0,96766.0,0.01054997]
[1736879757164,0.052698,96767.0,96766.0,0.009]
[1736879757165,0.06518015,96767.0,96766.0,0.009]
[1736879760683,0.42598015,96767.0,96766.0,0.009]
[1736879762087,0.06518015,96767.0,96766.0,0.009]
[1736879762584,0.001,96767.0,96766.0,0.060699]
[1736879764082,0.052698,96767.0,96766.0,0.009]
[1736879768784,0.053698,96767.0,96766.0,0.009]
[1736879768983,0.051712,96742.0,96741.0,0.3608]
[1736879769879,0.051714,96738.0,96737.0,0.0652]
[1736879770083,0.3608,96743.0,96735.0,0.00154983]
[1736879770290,0.051715,96736.0,96735.0,0.00154983]
[1736879771389,0.002,96742.0,96735.0,0.00154983]
[1736879771584,0.002,96742.0,96741.0,0.412512]
[1736879772392,0.001,96742.0,96741.0,0.412512]
[1736879772697,0.051704,96757.0,96754.0,0.051705]
[1736879772903,0.051701,96762.0,96757.0,0.051704]
[1736879773088,0.051701,96762.0,96758.0,0.051703]
[1736879773289,0.15422214,96780.0,96759.0,0.3608]
[1736879773488,0.55624,96786.0,96774.0,0.051694]
[1736879773489,0.051693,96777.0,96774.0,0.051694]
[1736879773688,0.051693,96777.0,96776.0,0.051694]
[1736879773900,0.10253014,96784.0,96762.0,0.3608]
[1736879774099,0.10253014,96772.0,96768.0,0.051697]
[1736879774294,0.051699,96767.0,96763.0,0.0313]
[1736879774490,0.051699,96766.0,96763.0,0.0313]
[1736879774890,0.10253014,96778.0,96762.0,0.3608]
[1736879774891,0.051701,96763.0,96762.0,0.3608]
[1736879775192,0.0517,96764.0,96753.0,0.18408138]
[1736879775497,0.051704,96756.0,96753.0,0.18408138]
[1736879775890,0.10253014,96765.0,96747.0,0.0315]
[1736879775891,0.051709,96748.0,96747.0,0.0315]
[1736879776287,0.10253014,96757.0,96746.0,0.3608]
[1736879776288,0.051709,96747.0,96746.0,0.3608]
[1736879776506,0.05171,96745.0,96744.0,0.0329]
[1736879776998,0.051713,96739.0,96738.0,0.032]
[1736879778291,0.051713,96739.0,96738.0,0.036]
[1736879778495,0.051713,96739.0,96738.0,0.004]
[1736879779292,0.052713,96739.0,96738.0,0.004]
[1736879779505,0.001,96739.0,96738.0,0.055714]
[1736879781697,0.001,96739.0,96738.0,0.416514]
[1736879781897,0.3608,96776.0,96759.0,0.051703]
[1736879782205,0.01167454,96767.0,96759.0,0.051703]
[1736879782701,0.05325378,96760.0,96759.0,0.051703]
[1736879783491,0.05625378,96760.0,96759.0,0.051703]
[1736879783696,0.00455078,96760.0,96759.0,0.051703]
[1736879783904,0.003,96760.0,96759.0,0.051703]
[1736879784603,0.003,96760.0,96759.0,0.052703]
[1736879785102,0.00155027,96791.0,96759.0,0.001]
[1736879785302,0.051691,96780.0,96779.0,0.3608]
[1736879785501,0.00155027,96791.0,96771.0,0.051696]
[1736879785502,0.051695,96774.0,96771.0,0.051696]
[1736879785697,0.051696,96772.0,96771.0,0.051696]
[1736879786296,0.15410728,96781.0,96770.0,0.3608]
[1736879786297,0.051696,96771.0,96770.0,0.3608]
[1736879786590,0.004,96774.0,96773.0,0.051695]
[1736879788201,0.004,96774.0,96773.0,0.054695]
[1736879789006,0.051688,96787.0,96786.0,0.051688]
[1736879790709,0.051686,96791.0,96786.0,0.051688]
[1736879791700,0.4561,96799.0,96786.0,0.051688]
[1736879791906,0.051686,96790.0,96786.0,0.051688]
[1736879792406,0.002,96787.0,96786.0,0.051688]
[1736879793110,0.051686,96790.0,96786.0,0.051688]
[1736879793511,0.001,96787.0,96786.0,0.051688]
[1736879795210,0.46773249,96799.0,96783.0,0.7216]
[1736879795211,0.04233249,96799.0,96783.0,0.7216]
[1736879795506,0.09208455,96847.0,96760.0,0.0307]
[1736879795507,0.032,96823.0,96816.0,0.051672]
[1736879795708,0.051667,96826.0,96818.0,0.412471]
[1736879796301,0.15410728,96830.0,96808.0,0.3608]
[1736879796502,0.15410728,96820.0,96808.0,0.3608]
[1736879796703,0.051671,96819.0,96808.0,0.3608]
[1736879796902,0.15410728,96820.0,96808.0,0.3608]
[1736879796903,0.051672,96817.0,96809.0,0.051676]
[1736879797109,0.051672,96817.0,96808.0,0.3608]
[1736879797110,0.15410728,96820.0,96808.0,0.3608]
[1736879797607,0.051676,96810.0,96808.0,0.3608]
[1736879798507,0.031,96809.0,96808.0,0.3608]
[1736879798711,0.05168,96802.0,96796.0,0.3608]
[1736879798902,0.05168,96802.0,96796.0,0.412483]
[1736879799102,0.15410728,96830.0,96815.0,0.051672]
[1736879799301,0.012,96820.0,96818.0,0.3608]
[1736879799805,0.06599006,96820.0,96818.0,0.3608]
[1736879800013,0.051677,96808.0,96798.0,0.412482]
[1736879800395,0.10555626,96810.0,96798.0,0.3608]
[1736879800601,0.051679,96805.0,96798.0,0.3608]
[1736879800894,0.0618,96809.0,96798.0,0.3608]
[1736879801097,0.051675,96811.0,96807.0,0.3608]
[1736879801301,0.0323,96818.0,96807.0,0.412477]
[1736879801501,0.051673,96816.0,96808.0,0.051676]
[1736879802107,0.11155626,96820.0,96813.0,0.051674]
[1736879802408,0.005,96810.0,96808.0,0.051677]
[1736879802615,0.005,96810.0,96808.0,0.506377]
[1736879802812,0.0608,96822.0,96808.0,0.4547]
[1736879803012,0.0608,96822.0,96820.0,0.3608]
[1736879804411,0.0658,96822.0,96820.0,0.3608]
[1736879804612,0.117469,96822.0,96820.0,0.3608]
[1736879805109,0.126469,96822.0,96820.0,0.3608]
[1736879805809,0.065669,96822.0,96820.0,0.3608]
[1736879808112,0.05167,96821.0,96820.0,0.3608]
[1736879809308,0.06067,96821.0,96820.0,0.3608]
[1736879809506,0.06067,96821.0,96808.0,0.4547]
[1736879809507,0.009,96821.0,96808.0,0.3608]
[1736879809711,0.051673,96814.0,96808.0,0.3608]
[1736879810312,0.051674,96813.0,96808.0,0.3608]
[1736879810914,0.051674,96813.0,96808.0,0.412477]
[1736879811615,0.051675,96812.0,96808.0,0.412477]
[1736879811811,0.051676,96810.0,96808.0,0.412477]
[1736879812009,0.003,96813.0,96808.0,0.3608]
[1736879812216,0.051676,96809.0,96808.0,0.3608]
[1736879812614,0.051676,96809.0,96801.0,0.3608]
[1736879812809,0.0956,96812.0,96801.0,0.3608]
[1736879812810,0.009,96812.0,96808.0,0.3608]
[1736879813017,0.051676,96809.0,96808.0,0.3608]
[1736879813317,0.060676,96809.0,96808.0,0.3608]
[1736879814125,0.009,96809.0,96808.0,0.412477]
[1736879814322,0.012,96809.0,96808.0,0.412477]
[1736879814820,0.003,96809.0,96808.0,0.412477]
[1736879815424,0.003,96809.0,96808.0,0.3608]
[1736879815625,0.063676,96809.0,96808.0,0.3608]
[1736879816918,0.063676,96809.0,96808.0,0.412477]
[1736879817124,0.063676,96809.0,96808.0,0.3608]
[1736879820819,0.012,96809.0,96808.0,0.412477]
[1736879825025,0.051668,96824.0,96820.0,0.05167]
[1736879825226,0.117361,96838.0,96820.0,0.05167]
[1736879825227,0.0657,96838.0,96820.0,0.3608]
[1736879825536,0.051664,96832.0,96830.0,0.051665]
[1736879825724,0.051664,96832.0,96829.0,0.3608]
[1736879825725,0.051664,96832.0,96831.0,0.051664]
[1736879825926,0.0657,96838.0,96829.0,0.3608]
[1736879825927,0.033,96838.0,96829.0,0.3608]
[1736879826232,0.01114242,96838.0,96829.0,0.3608]
[1736879826432,0.051661,96837.0,96829.0,0.3608]
[1736879827333,0.051661,96837.0,96830.0,0.051665]
[1736879827534,0.051661,96837.0,96833.0,0.051663]
[1736879827737,0.056661,96837.0,96834.0,0.051662]
[1736879827936,0.065661,96837.0,96834.0,0.051662]
[1736879828531,0.065661,96837.0,96835.0,0.051662]
[1736879829029,0.063661,96837.0,96835.0,0.051662]
[1736879829633,0.051662,96836.0,96835.0,0.051662]
[1736879830834,0.015,96837.0,96835.0,0.051662]
[1736879831136,0.006,96836.0,96835.0,0.051662]
[1736879831337,0.015,96836.0,96835.0,0.052662]
[1736879832831,0.015,96836.0,96835.0,0.413462]
[1736879833238,0.009,96836.0,96835.0,0.413462]
[1736879834137,0.012,96836.0,96835.0,0.413462]
[1736879834734,0.012,96836.0,96835.0,1.913462]
[1736879835438,0.051648,96863.0,96846.0,0.051656]
[1736879835639,0.051649,96861.0,96852.0,0.3608]
[1736879835937,0.10255626,96860.0,96857.0,0.05165]
[1736879836139,0.10255626,96860.0,96852.0,0.3608]
[1736879836340,0.051647,96863.0,96861.0,0.051648]
[1736879836925,0.04188697,96865.0,96861.0,0.051648]
[1736879837534,0.09353297,96865.0,96861.0,0.051648]
[1736879837738,0.051647,96864.0,96861.0,0.051648]
[1736879837936,0.051648,96862.0,96861.0,0.001]
[1736879838242,0.011,96863.0,96861.0,0.002]
[1736879838441,0.011,96863.0,96862.0,0.051648]
[1736879838743,0.011,96863.0,96861.0,0.002]
[1736879838946,0.011,96863.0,96862.0,0.051648]
[1736879839437,0.004,96863.0,96862.0,0.051648]
[1736879839640,0.01258697,96865.0,96862.0,0.051648]
[1736879839945,0.056646,96865.0,96862.0,0.051648]
[1736879840331,0.001,96863.0,96862.0,0.051648]
[1736879840531,0.005,96863.0,96862.0,0.052648]
[1736879841137,0.056646,96865.0,96862.0,0.052648]
[1736879841744,0.005,96865.0,96862.0,0.001]
[1736879841947,0.005,96865.0,96864.0,0.051647]
[1736879842744,0.005,96865.0,96864.0,0.412447]
[1736879842947,0.001,96865.0,96864.0,0.412447]
[1736879843247,0.01615835,96867.0,96864.0,0.412447]
[1736879843445,0.10066724,96890.0,96866.0,0.051646]
[1736879843642,0.051635,96887.0,96881.0,0.051637]
[1736879843838,0.10066724,96890.0,96876.0,0.3608]
[1736879844040,0.051637,96883.0,96876.0,0.41244]
[1736879844240,0.051637,96883.0,96877.0,0.051639]
[1736879844741,0.10066724,96890.0,96877.0,0.051639]
[1736879844942,0.051638,96880.0,96876.0,0.3628]
[1736879845941,0.10066724,96890.0,96877.0,0.051639]
[1736879846146,0.051632,96892.0,96879.0,0.051639]
[1736879846351,0.10255626,96890.0,96879.0,0.051639]
[1736879846552,0.10255626,96890.0,96877.0,0.003]
[1736879846855,0.051635,96885.0,96884.0,0.3608]
[1736879847746,0.37220007,96894.0,96884.0,0.3608]
[1736879848146,0.051633,96890.0,96884.0,0.3698]
[1736879848548,0.01140007,96894.0,96884.0,0.3698]
[1736879848854,0.1,96900.0,96896.0,0.05163]
[1736879849263,0.1,96900.0,96899.0,0.051628]
[1736879849553,0.1,96900.0,96899.0,1.551628]
[1736879850342,0.09955635,96908.0,96907.0,0.051624]
[1736879850543,0.09955635,96908.0,96907.0,0.3608]
[1736879850856,0.09955635,96908.0,96904.0,0.3608]
[1736879851246,0.09955635,96908.0,96905.0,0.051625]
[1736879851444,0.15118035,96908.0,96905.0,0.051625]
[1736879852854,0.15518035,96908.0,96907.0,0.001]
[1736879853454,0.15518035,96908.0,96905.0,0.052625]
[1736879853655,0.15818035,96908.0,96905.0,0.052625]
[1736879853861,0.10255635,96908.0,96904.0,0.3608]
[1736879854054,0.10655635,96908.0,96907.0,0.052624]
[1736879854659,0.15817935,96908.0,96907.0,0.001]
[1736879855559,0.051625,96905.0,96904.0,0.3608]
[1736879856161,0.10655635,96908.0,96907.0,0.001]
[1736879856358,0.15817935,96908.0,96907.0,0.001]
[1736879856562,0.15517935,96908.0,96907.0,0.001]
[1736879856868,0.004,96905.0,96904.0,0.413425]
[1736879857365,0.15517935,96908.0,96907.0,0.001]
[1736879857566,0.15817935,96908.0,96907.0,0.001]
[1736879858268,0.15517935,96908.0,96907.0,0.001]
[1736879858863,0.051625,96905.0,96904.0,0.3608]
[1736879859059,0.055625,96905.0,96904.0,0.3618]
[1736879859466,0.051625,96905.0,96904.0,0.3608]
[1736879860270,0.055625,96905.0,96904.0,0.3618]
[1736879860869,0.058625,96905.0,96904.0,0.3618]
[1736879864277,0.0587436,96905.0,96904.0,0.3618]
[1736879864777,0.0071186,96905.0,96904.0,0.413425]
[1736879865871,0.0328,96925.0,96914.0,0.05162]
[1736879866072,0.051618,96919.0,96914.0,0.41242]
[1736879866281,0.01127814,96923.0,96914.0,0.41242]
[1736879866282,0.01127814,96923.0,96914.0,0.3608]
[1736879866475,0.051614,96925.0,96922.0,0.3608]
[1736879866672,0.001,96922.0,96913.0,0.3608]
[1736879867074,0.05162,96914.0,96913.0,0.3608]
[1736879869468,0.05162,96914.0,96913.0,0.3618]
[1736879870483,0.05262,96914.0,96913.0,0.001]
[1736879870678,0.05162,96914.0,96913.0,0.001]
[1736879871088,0.05162,96914.0,96893.0,0.0113493]
[1736879871089,0.0120413,96914.0,96888.0,0.3608]
[1736879871282,0.10255626,96910.0,96901.0,0.051627]
[1736879871480,0.10255626,96910.0,96902.0,0.3608]
[1736879871681,0.10255626,96910.0,96902.0,1.8608]
[1736879872286,0.0110413,96914.0,96902.0,1.8608]
[1736879872476,0.13255626,96920.0,96902.0,1.8608]
[1736879872679,0.10255626,96912.0,96902.0,1.8608]
[1736879872984,0.001,96919.0,96902.0,1.8618]
[1736879873480,0.04102731,96920.0,96913.0,0.3608]
[1736879873681,0.14358357,96920.0,96913.0,0.3608]
[1736879874678,0.14558357,96920.0,96913.0,0.3608]
[1736879875082,0.14358357,96920.0,96913.0,0.3608]
[1736879875285,0.14558357,96920.0,96913.0,0.3618]
[1736879875685,0.19720057,96920.0,96913.0,0.3618]
[1736879875881,0.051617,96919.0,96913.0,0.3618]
[1736879876184,0.051622,96910.0,96904.0,0.20645398]
[1736879876384,0.051629,96897.0,96896.0,0.30695247]
[1736879876589,0.412429,96897.0,96896.0,0.30695247]
[1736879876896,0.413429,96897.0,96896.0,0.30695247]
[1736879877484,0.3618,96897.0,96872.0,0.30695247]
[1736879877792,0.051638,96881.0,96880.0,1.50154824]
[1736879878791,0.051638,96881.0,96880.0,1.50254824]
[1736879879688,0.051638,96881.0,96880.0,1.50354824]
[1736879880893,0.051638,96881.0,96880.0,1.86434824]
[1736879881694,0.1136325,96890.0,96880.0,1.86434824]
[1736879881695,0.10255626,96890.0,96880.0,1.86434824]
[1736879881894,0.051635,96886.0,96880.0,1.86434824]
[1736879882087,0.10255626,96890.0,96880.0,1.86434824]
[1736879882287,0.051638,96881.0,96880.0,1.86434824]
[1736879883589,0.412438,96881.0,96880.0,0.00354824]
[1736879884088,0.443238,96881.0,96880.0,0.00354824]
[1736879884289,0.051638,96881.0,96880.0,0.00354824]
[1736879887497,0.412438,96881.0,96880.0,0.00354824]
[1736879887713,0.445538,96881.0,96880.0,0.00354824]
[1736879888399,0.445538,96881.0,96880.0,0.00328823]
[1736879888596,0.446538,96881.0,96880.0,0.00328823]
[1736879891092,0.051638,96881.0,96880.0,0.00328823]
[1736879891495,0.10255626,96890.0,96880.0,0.00328823]
[1736879891700,0.051636,96884.0,96880.0,0.00328823]
[1736879891903,0.051637,96882.0,96880.0,0.00328823]
[1736879892709,0.11349196,96890.0,96881.0,0.3608]
[1736879892900,0.051635,96887.0,96884.0,0.051636]
[1736879893099,0.11349196,96890.0,96885.0,0.0302]
[1736879893299,0.10255626,96890.0,96889.0,0.051633]
[1736879893500,0.0624778,96891.0,96885.0,0.0302]
[1736879893699,0.0624778,96891.0,96886.0,0.051635]
[1736879893908,0.3608,96912.0,96890.0,0.3608]
[1736879894098,0.3608,96912.0,96903.0,0.412426]
[1736879894299,0.10255626,96910.0,96903.0,0.412426]
[1736879894497,0.10255626,96910.0,96907.0,0.051624]
[1736879894805,0.051622,96911.0,96907.0,0.051624]
[1736879895004,0.3608,96912.0,96904.0,0.033]
[1736879895200,0.051622,96911.0,96909.0,0.051622]
[1736879895601,0.3608,96912.0,96905.0,0.0322]
[1736879895908,0.3608,96912.0,96910.0,0.051622]
[1736879896305,0.002,96911.0,96910.0,0.051622]
[1736879896497,0.053622,96911.0,96909.0,0.001]
[1736879896703,0.051622,96910.0,96909.0,0.001]
[1736879897907,0.3608,96912.0,96902.0,0.051626]
[1736879898105,0.3608,96912.0,96905.0,0.001]
[1736879898106,0.051624,96906.0,96905.0,0.001]
[1736879898299,0.051632,96891.0,96883.0,0.41398403]
[1736879898503,0.051632,96891.0,96881.0,0.0605]
[1736879898700,0.051632,96891.0,96875.0,0.08384]
[1736879898701,0.001,96891.0,96875.0,0.08384]
[1736879899005,0.051637,96882.0,96875.0,0.0322]
[1736879899204,0.10255626,96885.0,96877.0,0.05164]
[1736879899402,0.051638,96880.0,96877.0,0.05164]
[1736879899599,0.051636,96884.0,96879.0,0.051639]
[1736879899805,0.051638,96881.0,96879.0,0.051639]
[1736879900003,0.10255626,96885.0,96875.0,0.0352]